fUSD/lending_fUSD_20240523
["ID","MTS","AMOUNT","RATE_DAILY","PERIOD"]
[327806512,1716495059990,-155.41553509,0.00024998,2]
[327806513,1716495059999,-156.08045563,0.00024998,2]
[327806514,1716495060010,-16115.31449531,0.00025,2]
[327806515,1716495060022,-493.37121987,0.00025,2]
[327806516,1716495060034,-3885.78099876,0.00025,2]
[327806517,1716495060045,-151806.43523319,0.00025,2]
[327806518,1716495060057,-1024.18695183,0.00025,2]
[327806519,1716495060072,-336.81685938,0.00025,2]
[327806520,1716495060277,-254.64298944,0.00017259,2]
[327806521,1716495060291,-10689.24316689,0.00017259,2]
[327806522,1716495060301,-470.543086,0.00021815,2]
[327806523,1716495060313,-500.0,0.00021917,2]
[327806524,1716495060323,-470.543086,0.00021917,2]
[327806525,1716495060333,-319.90431178,0.00022191,2]
[327806526,1716495060343,-500.0,0.00022191,2]
[327806527,1716495060353,-470.543086,0.00022191,7]
[327806528,1716495060364,-500.0,0.00022465,2]
[327806529,1716495060373,-470.543086,0.00022465,7]
[327806530,1716495060384,-500.0,0.00022739,2]
[327806531,1716495060394,-187.3273246,0.00023013,2]
[327806532,1716495060406,-470.543086,0.00023835,7]
[327806533,1716495060416,-470.543086,0.00024109,7]
[327806534,1716495060427,-51246.26668068,0.00025,2]
[327806535,1716495060447,-264.72940071,0.00022729,7]
[327806536,1716495060459,-205.81368529,0.00022729,7]
[327806537,1716495060469,-31286.20066471,0.00025,2]
[327806538,1716495060491,-776.52498054,0.00025,2]
[327806539,1716495060503,-1664.425,0.00025,2]
[327806540,1716495060515,-2024.02199953,0.00025,2]
[327806541,1716495060602,-470.543086,0.00022889,7]
[327806542,1716495060613,-1338.106914,0.00025,2]
[327806543,1716495060626,-735.73500075,0.00025,2]
[327806544,1716495060638,-356.3,0.00025,2]
[327806545,1716495060650,-349.999995,0.00025,2]
[327806546,1716495060668,-1005.33416139,0.00025,2]
[327806547,1716495060682,-5346.7466,0.00025,2]
[327806548,1716495060915,-1697.83,0.00025,2]
[327806549,1716495060928,-6666.6,0.00025,2]
[327806550,1716495061278,2706.00318543,0.00013973,2]
[327806551,1716495061563,155.11049814,0.00013973,2]
[327806554,1716495064718,226.78673909,0.00013973,2]
[327806555,1716495065427,155.0,0.00013973,2]
[327806556,1716495068113,158.46539353,0.00013973,2]
[327806558,1716495171864,1265.31368756,0.00013694,2]
[327806559,1716495205333,1000.0,0.00030999,120]
[327806560,1716495308417,188.01,0.00024787,120]
[327806561,1716495308771,188.01,0.00029744,120]
[327806562,1716495334253,471.052405,0.00031,120]
[327806563,1716495335319,471.052405,0.00031,120]
[327806564,1716495336173,471.052405,0.00031,120]
[327806565,1716495336961,471.052405,0.00031,120]
[327806566,1716495337285,151.0,0.00024212,120]
[327806567,1716495337786,471.052405,0.00031,120]
[327806568,1716495338576,471.052405,0.00031,120]
[327806571,1716495350851,314.052405,0.00031,120]
[327806572,1716495351822,314.052405,0.00031,120]
[327806573,1716495352527,314.052405,0.00031,120]
[327806574,1716495353381,314.052405,0.00031,120]
[327806575,1716495354234,314.052405,0.00031,120]
[327806576,1716495364111,157.052405,0.00031,120]
[327806577,1716495364893,157.052405,0.00031,120]
[327806578,1716495365657,157.052405,0.00031,120]
[327806579,1716495366415,157.052405,0.00031,120]
[327806580,1716495367304,157.052405,0.00031,120]
[327806581,1716495368108,157.052405,0.00031,120]
[327806582,1716495369132,157.052405,0.00031,120]
[327806583,1716495379799,157.052405,0.00031,120]
[327806584,1716495381366,157.052405,0.00031,120]
[327806585,1716495382110,157.052405,0.00031,120]
[327806586,1716495383282,157.052405,0.00031,120]
[327806587,1716495384443,157.052405,0.00031,120]
[327806588,1716495392266,151.052405,0.00031,120]
[327806589,1716495431534,158.84,0.00013973,2]
[327806590,1716495565485,151.0,0.00024305,120]
[327806593,1716495946359,159.07,0.00013973,2]
[327806595,1716495953271,200.0,0.00013903,2]
[327806596,1716495968830,1360.69914021,0.00013903,2]
[327806597,1716495986836,1359.27928639,0.00013903,2]
[327806613,1716496085620,151.0,0.00024428,120]
[327806664,1716496232861,-804.06709515,0.00017125,2]
[327806665,1716496233098,-1381.71812519,0.00017126,2]
[327806666,1716496233109,-204.9936907,0.00017127,2]
[327806667,1716496233119,-427.9339,0.00017157,2]
[327806668,1716496233128,-109.42703219,0.00017312,2]
[327806669,1716496233140,-975.41296781,0.00017312,2]
[327806670,1716496233149,-500.0,0.000185,2]
[327806671,1716496233159,-436.44,0.000185,2]
[327806672,1716496233168,-200.0,0.00018968,2]
[327806673,1716496233177,-410.46280664,0.00019,2]
[327806674,1716496233187,-250.0,0.000191,2]
[327806675,1716496233198,-1954.74,0.00019121,2]
[327806676,1716496233208,-17714.90776921,0.00019174,2]
[327806677,1716496233220,-5336.33133191,0.00019174,2]
[327806678,1716496233232,-848.76089888,0.00019174,2]
[327806679,1716496233241,-250.0,0.00019183,2]
[327806680,1716496233251,-500.0,0.00019204,2]
[327806681,1716496233260,-33602.01565997,0.00019555,2]
[327806682,1716496233270,-1084.84,0.00019575,2]
[327806683,1716496233279,-920.0,0.00019724,2]
[327806684,1716496233289,-188.01,0.00019829,2]
[327806685,1716496233298,-345.38455397,0.0002,2]
[327806686,1716496233307,-640.0,0.000203,3]
[327806687,1716496233317,-2255.0,0.000204,3]
[327806688,1716496233326,-158.84,0.00020447,2]
[327806689,1716496233335,-1279.4754,0.00020907,2]
[327806690,1716496233345,-8437.5685,0.00020907,2]
[327806692,1716496233354,-257.0045,0.00020907,2]
[327806693,1716496233363,-1217.6985,0.00020907,2]
[327806696,1716496233373,-977.17937319,0.00020907,2]
[327806698,1716496233385,-6179.49952681,0.00020907,2]
[327806700,1716496233395,-2500.0,0.00020907,2]
[327806702,1716496233404,-1000.0,0.00020907,2]
[327806704,1716496233413,-2159.73845061,0.00020907,2]
[327806706,1716496233423,-889.01,0.00020997,3]
[327806708,1716496233432,-750.0,0.00021,2]
[327806710,1716496233442,-409.84120861,0.00021005,2]
[327806712,1716496233454,-309.452495,0.00021005,2]
[327806714,1716496233463,-576.97713249,0.00021005,2]
[327806716,1716496233473,-2220.87448892,0.00021006,2]
[327806718,1716496233482,-16097.8746,0.00021007,2]
[327806721,1716496233492,-3709.23176686,0.00021007,2]
[327806724,1716496233504,-7944.83427842,0.00021007,2]
[327806729,1716496233515,-1056.7830963,0.00021007,2]
[327806732,1716496233527,-975.9428,0.00021007,2]
[327806735,1716496233538,-1116.30553275,0.00021007,2]
[327806738,1716496233551,-14045.32972567,0.00021007,2]
[327806741,1716496233562,-12053.58395749,0.00021007,2]
[327806744,1716496233577,-458.66396705,0.00021007,2]
[327806749,1716496233588,-3018.87247546,0.00021007,2]
[327806752,1716496233598,-4429.8879,0.00021007,2]
[327806755,1716496233607,-5701.84648301,0.00021007,2]
[327806758,1716496233620,-854.8607206,0.00021007,2]
[327806760,1716496233632,-3420.47089086,0.00021007,2]
[327806762,1716496233644,-483.38441344,0.00021007,2]
[327806765,1716496233658,-713.45,0.00021007,2]
[327806767,1716496233673,-2643.95885393,0.00021007,2]
[327806769,1716496233685,-9092.42988046,0.00021007,2]
[327806772,1716496233700,-279.9268524,0.00021007,2]
[327806774,1716496233712,-4334.02072546,0.00021007,2]
[327806776,1716496233724,-665.47689833,0.00021007,2]
[327806778,1716496233735,-371.38003099,0.00021007,2]
[327806782,1716496233762,-6665.89650835,0.00021007,2]
[327806784,1716496233775,-543.83019264,0.00021007,2]
[327806787,1716496233787,-3316.7913667,0.00021007,2]
[327806790,1716496233809,-437.825,0.00021007,2]
[327806792,1716496233825,-3448.2847955,0.00021007,2]
[327806922,1716496237497,-114343.68178733,0.00021007,2]
[327806923,1716496237507,-6513.4392,0.00021007,2]
[327806925,1716496237519,-319.7045851,0.00021007,2]
[327806927,1716496237531,-672.31409326,0.00021097,2]
[327806928,1716496237541,-155.0,0.00021106,2]
[327806929,1716496237552,-4702.03954018,0.00021106,2]
[327806930,1716496237568,-1071.84695952,0.00021106,5]
[327806931,1716496237580,-30094.378,0.00021107,2]
[327806933,1716496237591,-2477.4913,0.00021107,2]
[327806935,1716496237603,-100000.0,0.00021107,2]
[327806936,1716496237614,-4396.26822204,0.00021107,2]
[327806937,1716496237627,-1248.38637796,0.00021107,2]
[327806938,1716496237638,-3994.84529172,0.00021107,2]
[327806939,1716496237651,-5638.59697852,0.00021107,2]
[327806940,1716496237663,-7214.50036956,0.00021107,2]
[327806941,1716496237676,-5115.537408,0.00021107,2]
[327806942,1716496237689,-9500.929818,0.00021107,2]
[327806943,1716496237703,-785.92464769,0.00021107,2]
[327806944,1716496237715,-669.42707453,0.00021107,2]
[327806945,1716496238066,-867.8702897,0.00021107,2]
[327806946,1716496238204,-3314.4156,0.00021107,2]
[327806947,1716496238216,-24874.27443899,0.00021107,2]
[327806948,1716496238228,-9829.1716183,0.00021107,2]
[327806949,1716496238239,-655.82000289,0.00021107,2]
[327806950,1716496238251,-672.3,0.00021107,2]
[327806951,1716496238262,-6185.98287592,0.00021107,2]
[327806952,1716496238274,-1654.53650654,0.00021107,2]
[327806953,1716496238359,-28006.43362856,0.00021107,2]
[327806954,1716496238371,-36928.11414143,0.00021107,2]
[327806955,1716496238383,-10500.26027459,0.00021107,2]
[327806956,1716496238395,-1935.89807837,0.00021107,2]
[327806957,1716496238407,-14263.00662656,0.00021107,2]
[327806958,1716496238419,-830.53999099,0.00021107,2]
[327806959,1716496238431,-5111.28122006,0.00021107,2]
[327807042,1716496240438,-735.70078363,0.00021107,2]
[327807043,1716496240450,-65714.63233545,0.00021107,2]
[327807044,1716496240462,-150.33,0.00021539,2]
[327807045,1716496240472,-150.33,0.00021539,2]
[327807046,1716496240483,-5022.28178433,0.00021549,2]
[327807047,1716496240496,-931.77255182,0.00021549,2]
[327807048,1716496240508,-12990.02286008,0.00021549,2]
[327807049,1716496240521,-673.2407,0.00021549,2]
[327807089,1716496242937,-33772.74357977,0.00021549,2]
[327807091,1716496242952,-51700.0,0.00021549,2]
[327807093,1716496243005,-124782.69363928,0.00021549,2]
[327807094,1716496243015,-18026.4836,0.0002155,2]
[327807095,1716496243025,-500.0,0.0002155,2]
[327807096,1716496243036,-150.33,0.00021589,2]
[327807097,1716496243047,-740.12003514,0.00021598,2]
[327807098,1716496243057,-181.63450671,0.00021598,2]
[327807099,1716496243067,-582.18,0.00021598,2]
[327807100,1716496243078,-212.89350776,0.00021598,2]
[327807101,1716496243088,-5573.14330149,0.00021599,2]
[327807102,1716496243098,-36260.14,0.000216,2]
[327807103,1716496243108,-2197.4693,0.000216,2]
[327807104,1716496243118,-1000.0,0.000216,2]
[327807105,1716496243128,-339.17922691,0.00021696,2]
[327807106,1716496243138,-400.0,0.000218,7]
[327807107,1716496243148,-37303.4845,0.00021815,2]
[327807108,1716496243158,-1084.84,0.00021839,2]
[327807109,1716496243168,-1954.74,0.00021861,2]
[327807110,1716496243178,-800.0,0.000219,7]
[327807111,1716496243187,-150.33,0.00021907,2]
[327807112,1716496243197,-150.33,0.00021907,2]
[327807113,1716496243207,-292.45877884,0.00021915,2]
[327807114,1716496243220,-155.13606528,0.00021915,2]
[327807115,1716496243230,-417.48615484,0.00021915,2]
[327807116,1716496243240,-378.01191713,0.00021915,2]
[327807117,1716496243249,-361.22735375,0.00021915,5]
[327807118,1716496243259,-292.86882684,0.00021915,2]
[327807119,1716496243269,-162.54548388,0.00021915,2]
[327807120,1716496243279,-642.80506828,0.00021915,2]
[327807121,1716496243288,-500.0,0.00021917,2]
[327807122,1716496243300,-237.63893409,0.00021917,2]
[327807123,1716496243314,-500.0,0.00021917,2]
[327807124,1716496243327,-500.0,0.00021917,2]
[327807125,1716496243340,-500.0,0.00021917,2]
[327807126,1716496243354,-500.0,0.00021917,2]
[327807127,1716496243368,-500.0,0.00021917,2]
[327807128,1716496243380,-198.04134757,0.00021917,2]
[327807129,1716496243390,-500.0,0.00021917,2]
[327807130,1716496243401,-500.0,0.00021917,2]
[327807131,1716496243412,-500.0,0.00021917,2]
[327807132,1716496243424,-500.0,0.00021917,2]
[327807133,1716496243436,-289.10000389,0.00021917,2]
[327807134,1716496243447,-396.53680964,0.00021917,2]
[327807135,1716496243458,-537.05551483,0.00021917,2]
[327807136,1716496243472,-500.0,0.00021917,2]
[327807137,1716496243483,-500.0,0.00021917,2]
[327807138,1716496243494,-500.0,0.00021917,2]
[327807139,1716496243505,-500.0,0.00021917,2]
[327807140,1716496243518,-384.57579716,0.00021917,2]
[327807142,1716496243531,-500.0,0.00021917,2]
[327807143,1716496243543,-500.0,0.00021917,2]
[327807144,1716496243558,-500.0,0.00021917,2]
[327807145,1716496243572,-500.0,0.00021917,2]
[327807146,1716496243584,-500.0,0.00021917,2]
[327807147,1716496243596,-500.0,0.00021917,2]
[327807148,1716496243607,-500.0,0.00021917,2]
[327807149,1716496243619,-500.0,0.00021917,2]
[327807151,1716496243631,-500.0,0.00021917,2]
[327807153,1716496243642,-500.0,0.00021917,2]
[327807155,1716496243656,-500.0,0.00021917,2]
[327807158,1716496243670,-500.0,0.00021917,2]
[327807160,1716496243682,-500.0,0.00021917,2]
[327807161,1716496243695,-500.0,0.00021917,2]
[327807162,1716496243706,-500.0,0.00021917,2]
[327807163,1716496243722,-500.0,0.00021917,2]
[327807164,1716496243733,-500.0,0.00021917,2]
[327807165,1716496243744,-502.87609827,0.00021917,2]
[327807166,1716496243755,-500.0,0.00021917,2]
[327807167,1716496243765,-500.0,0.00021917,2]
[327807168,1716496243778,-500.0,0.00021917,2]
[327807169,1716496243789,-500.0,0.00021917,2]
[327807170,1716496243800,-500.0,0.00021917,2]
[327807171,1716496243812,-500.0,0.00021917,2]
[327807172,1716496243824,-500.0,0.00021917,2]
[327807173,1716496243836,-500.0,0.00021917,2]
[327807174,1716496243848,-500.0,0.00021917,2]
[327807175,1716496243860,-500.0,0.00021917,2]
[327807176,1716496243872,-500.0,0.00021917,2]
[327807177,1716496243886,-500.0,0.00021917,2]
[327807178,1716496243900,-500.0,0.00021917,2]
[327807179,1716496243913,-500.0,0.00021917,2]
[327807180,1716496243929,-500.0,0.00021917,2]
[327807181,1716496243941,-500.0,0.00021917,2]
[327807182,1716496243953,-383.90315838,0.00021917,2]
[327807183,1716496243967,-584.89010001,0.00021917,2]
[327807184,1716496243979,-500.0,0.00021917,2]
[327807185,1716496243991,-500.0,0.00021917,2]
[327807186,1716496244002,-500.0,0.00021917,2]
[327807187,1716496244013,-500.0,0.00021917,2]
[327807188,1716496244025,-621.87,0.00021917,2]
[327807189,1716496244038,-500.0,0.00021917,2]
[327807190,1716496244049,-500.0,0.00021917,2]
[327807191,1716496244062,-500.0,0.00021917,2]
[327807192,1716496244075,-500.0,0.00021917,2]
[327807193,1716496244087,-500.0,0.00021917,2]
[327807194,1716496244099,-500.0,0.00021917,2]
[327807195,1716496244109,-500.0,0.00021917,2]
[327807196,1716496244120,-500.0,0.00021917,2]
[327807197,1716496244131,-500.0,0.00021917,2]
[327807198,1716496244142,-616.38,0.00021917,2]
[327807199,1716496244153,-500.0,0.00021917,2]
[327807200,1716496244165,-500.0,0.00021917,2]
[327807201,1716496244178,-500.0,0.00021917,2]
[327807202,1716496244189,-500.0,0.00021917,2]
[327807203,1716496244200,-318.81424618,0.00021917,2]
[327807204,1716496244213,-500.0,0.00021917,2]
[327807205,1716496244224,-500.0,0.00021917,2]
[327807206,1716496244235,-500.0,0.00021917,2]
[327807207,1716496244245,-500.0,0.00021917,2]
[327807208,1716496244256,-454.67180276,0.00021917,2]
[327807209,1716496244267,-635.85,0.00021917,2]
[327807210,1716496244277,-500.0,0.00021917,2]
[327807211,1716496244288,-500.0,0.00021917,2]
[327807212,1716496244299,-500.0,0.00021917,2]
[327807213,1716496244310,-500.0,0.00021917,2]
[327807214,1716496244320,-500.0,0.00021917,2]
[327807215,1716496244334,-500.0,0.00021917,2]
[327807216,1716496244344,-500.0,0.00021917,2]
[327807217,1716496244356,-500.0,0.00021917,2]
[327807218,1716496244367,-583.19,0.00021917,2]
[327807219,1716496244378,-500.0,0.00021917,2]
[327807220,1716496244389,-500.0,0.00021917,2]
[327807221,1716496244400,-500.0,0.00021917,2]
[327807222,1716496244411,-500.0,0.00021917,2]
[327807223,1716496244423,-514.61963428,0.00021917,2]
[327807224,1716496244434,-335.42,0.00021917,2]
[327807225,1716496244446,-512.12821118,0.00021917,2]
[327807226,1716496244458,-500.0,0.00021917,2]
[327807227,1716496244472,-515.403976,0.00021917,2]
[327807228,1716496244484,-500.0,0.00021917,2]
[327807229,1716496244496,-500.0,0.00021917,2]
[327807230,1716496244508,-500.0,0.00021917,2]
[327807231,1716496244519,-500.0,0.00021917,2]
[327807232,1716496244531,-500.0,0.00021917,2]
[327807233,1716496244542,-500.0,0.00021917,2]
[327807234,1716496244555,-629.04,0.00021917,2]
[327807235,1716496244568,-500.0,0.00021917,2]
[327807236,1716496244582,-500.0,0.00021917,2]
[327807237,1716496244595,-610.76,0.00021917,2]
[327807238,1716496244607,-500.0,0.00021917,2]
[327807239,1716496244620,-500.0,0.00021917,2]
[327807240,1716496244633,-500.0,0.00021917,2]
[327807241,1716496244644,-500.0,0.00021917,2]
[327807242,1716496244658,-500.0,0.00021917,2]
[327807243,1716496244670,-500.0,0.00021917,2]
[327807244,1716496244680,-500.0,0.00021917,2]
[327807245,1716496244692,-500.0,0.00021917,2]
[327807246,1716496244704,-500.0,0.00021917,2]
[327807247,1716496244719,-741.12,0.00021917,2]
[327807248,1716496244731,-500.0,0.00021917,2]
[327807249,1716496244742,-510.96774023,0.00021917,2]
[327807250,1716496244753,-500.0,0.00021917,2]
[327807251,1716496244766,-500.0,0.00021917,2]
[327807252,1716496244779,-500.0,0.00021917,2]
[327807253,1716496244791,-661.23,0.00021917,2]
[327807254,1716496244803,-500.0,0.00021917,2]
[327807255,1716496244815,-500.0,0.00021917,2]
[327807256,1716496244828,-504.70376447,0.00021917,2]
[327807257,1716496244841,-500.0,0.00021917,2]
[327807258,1716496244853,-377.50619771,0.00021917,2]
[327807259,1716496244866,-500.0,0.00021917,2]
[327807260,1716496244878,-500.0,0.00021917,2]
[327807261,1716496244890,-500.0,0.00021917,2]
[327807262,1716496244903,-500.0,0.00021917,2]
[327807263,1716496244915,-406.08384715,0.00021917,2]
[327807264,1716496244926,-500.0,0.00021917,2]
[327807265,1716496244939,-500.0,0.00021917,2]
[327807266,1716496244950,-500.0,0.00021917,2]
[327807267,1716496244966,-500.0,0.00021917,2]
[327807268,1716496244978,-500.0,0.00021917,2]
[327807269,1716496244990,-500.0,0.00021917,2]
[327807270,1716496245002,-512.12,0.00021917,2]
[327807271,1716496245014,-500.0,0.00021917,2]
[327807272,1716496245026,-500.0,0.00021917,2]
[327807273,1716496245038,-500.0,0.00021917,2]
[327807274,1716496245050,-500.0,0.00021917,2]
[327807275,1716496245062,-500.0,0.00021917,2]
[327807276,1716496245072,-500.0,0.00021917,2]
[327807277,1716496245084,-500.0,0.00021917,2]
[327807278,1716496245095,-500.0,0.00021917,2]
[327807279,1716496245107,-500.0,0.00021917,2]
[327807280,1716496245119,-500.0,0.00021917,2]
[327807281,1716496245130,-534.96,0.00021917,2]
[327807282,1716496245141,-500.0,0.00021917,2]
[327807283,1716496245152,-500.0,0.00021917,2]
[327807284,1716496245164,-500.0,0.00021917,2]
[327807285,1716496245176,-500.0,0.00021917,2]
[327807286,1716496245187,-604.2,0.00021917,2]
[327807287,1716496245198,-500.0,0.00021917,2]
[327807288,1716496245209,-592.65,0.00021917,2]
[327807289,1716496245224,-500.0,0.00021917,2]
[327807290,1716496245235,-500.0,0.00021917,2]
[327807291,1716496245246,-500.0,0.00021917,2]
[327807292,1716496245258,-500.0,0.00021917,2]
[327807293,1716496245270,-500.0,0.00021917,2]
[327807294,1716496245282,-500.0,0.00021917,2]
[327807295,1716496245295,-500.0,0.00021917,2]
[327807296,1716496245307,-428.11944002,0.00021917,2]
[327807298,1716496245319,-500.0,0.00021917,2]
[327807300,1716496245330,-500.0,0.00021917,2]
[327807302,1716496245341,-500.0,0.00021917,2]
[327807303,1716496245352,-528.68,0.00021917,2]
[327807304,1716496245364,-500.0,0.00021917,2]
[327807305,1716496245376,-500.0,0.00021917,2]
[327807306,1716496245388,-500.0,0.00021917,2]
[327807307,1716496245400,-500.0,0.00021917,2]
[327807308,1716496245411,-500.0,0.00021917,2]
[327807309,1716496245423,-508.01808956,0.00021917,2]
[327807310,1716496245434,-500.0,0.00021917,2]
[327807311,1716496245445,-500.0,0.00021917,2]
[327807312,1716496245456,-500.0,0.00021917,2]
[327807313,1716496245471,-500.94,0.00021917,2]
[327807314,1716496245482,-500.0,0.00021917,2]
[327807315,1716496245493,-754.43,0.00021917,2]
[327807316,1716496245504,-500.0,0.00021917,2]
[327807318,1716496245516,-500.0,0.00021917,2]
[327807320,1716496245527,-500.0,0.00021917,2]
[327807322,1716496245538,-500.0,0.00021917,2]
[327807324,1716496245548,-500.0,0.00021917,2]
[327807327,1716496245565,-500.0,0.00021917,2]
[327807328,1716496245576,-500.0,0.00021917,2]
[327807330,1716496245587,-500.0,0.00021917,2]
[327807332,1716496245599,-526.55,0.00021917,2]
[327807334,1716496245610,-500.0,0.00021917,2]
[327807336,1716496245620,-500.0,0.00021917,2]
[327807338,1716496245631,-500.0,0.00021917,2]
[327807340,1716496245644,-500.0,0.00021917,2]
[327807342,1716496245655,-885.72,0.00021917,2]
[327807344,1716496245666,-500.0,0.00021917,2]
[327807346,1716496245676,-500.0,0.00021917,2]
[327807349,1716496245687,-500.0,0.00021917,2]
[327807351,1716496245698,-500.0,0.00021917,2]
[327807352,1716496245708,-500.0,0.00021917,2]
[327807353,1716496245723,-500.0,0.00021917,2]
[327807354,1716496245734,-500.0,0.00021917,2]
[327807355,1716496245744,-500.0,0.00021917,2]
[327807356,1716496245754,-500.0,0.00021917,2]
[327807357,1716496245765,-500.0,0.00021917,2]
[327807358,1716496245775,-500.0,0.00021917,2]
[327807359,1716496245786,-500.0,0.00021917,2]
[327807360,1716496245796,-500.0,0.00021917,2]
[327807361,1716496245807,-653.73,0.00021917,2]
[327807362,1716496245817,-500.0,0.00021917,2]
[327807363,1716496245827,-500.0,0.00021917,2]
[327807364,1716496245839,-3517.9,0.00021917,2]
[327807365,1716496245850,-612.61,0.00021917,2]
[327807366,1716496245860,-500.0,0.00021917,2]
[327807367,1716496245870,-500.0,0.00021917,2]
[327807368,1716496245881,-500.0,0.00021917,2]
[327807369,1716496245891,-500.0,0.00021917,2]
[327807377,1716496246162,-500.0,0.00021917,2]
[327807380,1716496246180,-500.0,0.00021917,2]
[327807382,1716496246190,-500.0,0.00021917,2]
[327807384,1716496246200,-500.0,0.00021917,2]
[327807386,1716496246209,-500.0,0.00021917,2]
[327807388,1716496246220,-500.0,0.00021917,2]
[327807390,1716496246229,-500.0,0.00021917,2]
[327807392,1716496246238,-500.0,0.00021917,2]
[327807394,1716496246247,-1851.05,0.00021917,2]
[327807396,1716496246256,-500.0,0.00021917,2]
[327807398,1716496246266,-4072.31,0.00021917,2]
[327807400,1716496246275,-500.0,0.00021917,2]
[327807402,1716496246284,-500.0,0.00021917,2]
[327807404,1716496246294,-500.0,0.00021917,2]
[327807406,1716496246303,-500.0,0.00021917,2]
[327807407,1716496246312,-595.99,0.00021917,2]
[327807408,1716496246322,-500.0,0.00021917,2]
[327807409,1716496246331,-548.27,0.00021917,2]
[327807410,1716496246341,-500.0,0.00021917,2]
[327807411,1716496246350,-500.0,0.00021917,2]
[327807412,1716496246360,-500.0,0.00021917,2]
[327807413,1716496246369,-500.0,0.00021917,2]
[327807414,1716496246379,-500.0,0.00021917,2]
[327807415,1716496246388,-500.0,0.00021917,2]
[327807416,1716496246397,-630.24,0.00021917,2]
[327807417,1716496246406,-500.0,0.00021917,2]
[327807419,1716496246415,-369.01754394,0.00021917,2]
[327807421,1716496246424,-500.0,0.00021917,2]
[327807423,1716496246433,-500.0,0.00021917,2]
[327807425,1716496246442,-173.97,0.00021918,2]
[327807427,1716496246452,-452.28,0.00021918,2]
[327807429,1716496246463,-2000.0,0.00021918,2]
[327807431,1716496246472,-250.0,0.00021918,2]
[327807433,1716496246482,-313.36763717,0.0002193,2]
[327807435,1716496246491,-176.12813558,0.00021991,2]
[327807437,1716496246500,-163.00887148,0.00021991,2]
[327807439,1716496246510,-550.0,0.00022,10]
[327807441,1716496246519,-166.66666666,0.00022034,2]
[327807443,1716496246528,-151.0,0.00022048,3]
[327807445,1716496246538,-2159.73845058,0.00022049,2]
[327807447,1716496246547,-150.33,0.00022081,2]
[327807449,1716496246557,-1000.0,0.00022091,2]
[327807451,1716496246566,-10000.0,0.00022091,2]
[327807453,1716496246579,-7500.0,0.00022091,2]
[327807455,1716496246588,-14438.09024785,0.00022091,2]
[327807457,1716496246598,-151.89369928,0.00022096,2]
[327807459,1716496246608,-202.46489395,0.00022149,2]
[327807461,1716496246618,-920.0,0.00022189,2]
[327807463,1716496246627,-500.0,0.00022191,2]
[327807465,1716496246636,-500.0,0.00022191,2]
[327807467,1716496246647,-500.0,0.00022191,2]
[327807469,1716496246656,-500.0,0.00022191,2]
[327807471,1716496246666,-500.0,0.00022191,2]
[327807473,1716496246676,-500.0,0.00022191,2]
[327807475,1716496246685,-500.0,0.00022191,2]
[327807477,1716496246695,-500.0,0.00022191,2]
[327807479,1716496246704,-500.0,0.00022191,2]
[327807481,1716496246714,-536.65,0.00022191,2]
[327807483,1716496246724,-500.0,0.00022191,2]
[327807485,1716496246734,-500.0,0.00022191,2]
[327807487,1716496246744,-500.0,0.00022191,2]